Cogmind - Beta 12 @@@ ROGUE MODE // 2023.03.30 @ 11:23:50 Player: Questman6167 Result: Destroyed by D-53 Grenadier with Mini Grenade Launcher Performance ------------- Evolutions (0) 0 Regions Visited (2) 400 Robots Destroyed (10) 50 Value Destroyed (263) 263 Prototype IDs (3) 60 Alien Tech Used (0) 0 Bonus (0) 0 TOTAL SCORE: 773 Bonus ------- None Cogmind --------- Core Integrity 0/250 Matter 300/300 Energy 132/140 System Corruption 0% Temperature Cool (4) Movement Walking (110) Location -10/Mines Parts ------- > --- POWER (1) -------- Light Deuterium Engine > --- PROPULSION (2) --- Titanium Leg VSS Leg > --- UTILITY (2) ------ Large Storage Unit Signal Interpreter > --- WEAPON (2) ------- Heavy Mace > --- INVENTORY (15) --- Light Ion Engine Light Ion Engine Aluminum Leg Aluminum Leg Aluminum Leg Improved Heat Sink High-capacity Matter Pod (153) Compact Matter Pod (0) Improved Sensor Array Target Analyzer Target Analyzer Hardened Medium Armor Plating Insulated Plating Improved Trap Extractor (0/6) Improved Datajack Peak State ------------ > --- POWER ------------ Light Deuterium Engine > --- PROPULSION ------- Titanium Leg VSS Leg > --- UTILITY ---------- Large Storage Unit Signal Interpreter > --- WEAPON ----------- Light Assault Rifle Heavy Mace > --- INVENTORY -------- Light Ion Engine Light Ion Engine Aluminum Leg Aluminum Leg Aluminum Leg Improved Heat Sink High-capacity Matter Pod Improved Sensor Array Target Analyzer Target Analyzer Hardened Medium Armor Plating Insulated Plating Improved Trap Extractor Improved Datajack [Rating: 18] Favorites ----------- Power Light Ion Engine Engine Light Ion Engine Propulsion Light Treads Treads Light Treads Leg Aluminum Leg Utility Large Storage Unit Storage Large Storage Unit Processor Signal Interpreter Weapon Light Assault Rifle Ballistic Gun Light Assault Rifle Launcher Grenade Launcher Impact Weapon Heavy Mace Build | -11 -10 -10 ------- Run | Jun Mat Min Slots Evolved . | . . . Power . | . . . Propulsion . | . . . Utility . | . . . Weapon . | . . . Parts Attached 18 | 6 7 5 Power 3 | 1 1 1 Engine 3 | 1 1 1 Core . | . . . Reactor . | . . . Propulsion 7 | 2 2 3 Treads 2 | 2 . . Leg 5 | . 2 3 Wheel . | . . . Hover . | . . . Flight . | . . . Utility 3 | 1 2 . Device . | . . . Storage 2 | 1 1 . Processor 1 | . 1 . Hackware . | . . . Protection . | . . . Artifact . | . . . Weapon 5 | 2 2 1 Energy Gun . | . . . Energy Cannon . | . . . Ballistic Gun 3 | 2 1 . Ballistic Cannon . | . . . Launcher 1 | . 1 . Special Weapon . | . . . Impact Weapon 1 | . . 1 Slashing Weapon . | . . . Piercing Weapon . | . . . Special Melee Weapon . | . . . Unidentified Prototypes . | . . . Parts Lost 4 | . 3 1 Power 1 | . 1 . Propulsion 1 | . 1 . Utility . | . . . Weapon 2 | . 1 1 Highest Loss Streak 3 | . 3 1 To Critical Strikes . | . . . Average Slot Usage (%) 96 | . 94 98 Engine 13 | . 13 14 Treads 6 | . 14 . Leg 19 | . 9 28 Storage 15 | . 16 14 Processor 12 | . 10 14 Ballistic Gun 22 | . 24 21 Launcher 1 | . 2 . Impact Weapon 2 | . . 5 Naked Turns . | . . . Heaviest Build 32 | 11 32 29 Greatest Support 40 | 40 40 29 Greatest Overweight (x) 2 | . 2 1 Average Overweight (x) . | . . . Largest Inventory Capacity 15 | 8 15 15 Average Capacity 13 | 7 14 15 Most Carried 15 | 1 4 15 Average Carried 5 | . 2 9 Final Capacity 15 | 8 15 15 Final Carried 15 | 1 4 15 Class Distribution -------------------- 100% | Mutant Dominant Class ---------------- Mutant | -10/Materials Mutant | -10/Mines Resources | -11 -10 -10 ----------- Run | Jun Mat Min Matter Collected 669 | 154 115 400 Remotely . | . . . Salvage Created 214 | . 214 . Parts 19 | . 19 . Haulers Intercepted . | . . . Recyclers Shooed . | . . . Parts Field Recycled . | . . . Retrieved Matter . | . . . Parts Self-Destructed . | . . . Prevented . | . . . Kills | -11 -10 -10 ------- Run | Jun Mat Min Combat Hostiles Destroyed 8 | . 8 . Guns 4 | . 4 . AOE 4 | . 4 . Classes Destroyed 4 | . 4 . Worker 1 | . 1 . Watcher 1 | . 1 . Swarmer 3 | . 3 . Grunt 5 | . 5 . Best Kill Streak 7 | . 7 . Combat Bots Only 6 | . 6 . Max Kills in Single Turn 1 | . 1 . Gunslinging . | . . . Exploded 1 | . 1 . Melee . | . . . Uniques/NPCs Destroyed . | . . . Combat | -11 -10 -10 -------- Run | Jun Mat Min Damage Taken 916 | . 638 278 Core 252 | . 147 105 Absorbed by Shields . | . . . Core Remaining (%) 100 | 100 . . Volleys Fired 29 | . 29 . Largest 2 | . 2 . Hottest 50 | . 50 . Shots Fired 52 | . 52 . Gun 43 | . 43 . Cannon . | . . . Launcher 9 | . 9 . Special . | . . . Kinetic 43 | . 43 . Thermal . | . . . Explosive 9 | . 9 . Electromagnetic . | . . . Robot Hit Streak 6 | . 6 . Robot Miss Streak 3 | . 3 . Penetration Max . | . . . Secondary Targets 1 | . 1 . Max Gunslinging Chain 1 | . 1 . Shots Hit Robots 31 | . 31 . Core Hits 22 | . 22 . Critical Kills . | . . . Critical Parts Destroyed 1 | . 1 . Critical Strikes 1 | . 1 . Destroy 1 | . 1 . Melee Attacks . | . . . Impact . | . . . Slashing . | . . . Piercing . | . . . Sneak Attacks . | . . . Combat Hostiles . | . . . Follow-up Attacks . | . . . Damage Inflicted 757 | . 757 . Guns 271 | . 271 . Cannons . | . . . Explosions 483 | . 483 . Melee . | . . . Ramming 3 | . 3 . Kinetic 271 | . 271 . Thermal . | . . . Explosive 483 | . 483 . Electromagnetic . | . . . Impact . | . . . Slashing . | . . . Piercing . | . . . Highest Corruption . | . . . Average Corruption . | . . . Corruption Purged . | . . . Corruption Blocked . | . . . Overload Shots . | . . . Overflow Damage 24 | . 24 . Projectiles . | . . . Explosions 24 | . 24 . Melee . | . . . Knockbacks . | . . . Impact . | . . . Kinetic . | . . . Secondary . | . . . Self-Inflicted Damage 67 | . 67 . Shots 4 | . 4 . Rammed . | . . . Targets Rammed 2 | . 2 . Kicked 2 | . 2 . Crushed . | . . . Highest Temperature 32 | . 32 . Average Temperature 9 | . 9 . Received Heat Transfer 246 | . 246 . Siege Activations . | . . . Robots Corrupted . | . . . Combat Hostiles . | . . . Parts Fried . | . . . Impact Corruptions . | . . . Robots Melted . | . . . Combat Hostiles . | . . . Parts Melted . | . . . Heat Transferred . | . . . Parts Sabotaged . | . . . Parts Stolen . | . . . Parts Stripped . | . . . Power Chain Reactions . | . . . Missiles Intercepted . | . . . Alert | -11 -10 -10 ------- Run | Jun Mat Min Peak Influence 280 | . 280 109 Initial 109 | . . 109 Average 110 | . 155 109 Maximum Alert Level 1 | . 1 . Low Security (%) 84 | 100 58 100 Level 1 15 | . 41 . Level 2 . | . . . Level 3 . | . . . Level 4 . | . . . Level 5 . | . . . High Security . | . . . Max Security . | . . . Squads Dispatched 2 | . 1 1 Investigation 1 | . . 1 Extermination . | . . . Reinforcement 1 | . 1 . Assault . | . . . Garrison . | . . . Intercept . | . . . Searches Triggered . | . . . Construction Impeded . | . . . Haulers Reinforced . | . . . Active Scanning Responses . | . . . Cargo Convoy Interrupts . | . . . Stealth | -11 -10 -10 --------- Run | Jun Mat Min Distress Signals 4 | . 4 . Communications Jammed . | . . . Distress Signals . | . . . Times Spotted 20 | . 17 3 Peak Tracking Total 6 | . 6 4 Tactical Retreats 2 | . 2 . Traps | -11 -10 -10 ------- Run | Jun Mat Min Traps Triggered 1 | . . 1 Indirectly . | . . . Trap Hack Attempts . | . . . Triggered . | . . . Disarmed . | . . . Reprogrammed . | . . . Reused . | . . . Traps Extracted . | . . . Installed . | . . . Triggered . | . . . Machines | -11 -10 -10 ---------- Run | Jun Mat Min Machines Disabled 2 | . 2 . Max in Single Turn 1 | . 1 . Machines Repaired . | . . . Machines Sabotaged . | . . . Overloaded Fab Kills . | . . . Hacking | -11 -10 -10 --------- Run | Jun Mat Min Machines Accessed 4 | . 2 2 Terminals 2 | . 2 . Fabricators . | . . . Repair Stations . | . . . Recycling Units . | . . . Scanalyzers . | . . . Garrison Access . | . . . Total Hacks 8 | . 6 2 Successful 7 | . 5 2 Failed 1 | . 1 . Catastrophic . | . . . Database Lockouts . | . . . Manual . | . . . Terminals 6 | . 6 . Fabricators . | . . . Repair Stations . | . . . Recycling Units . | . . . Scanalyzers . | . . . Garrison Access . | . . . Terminal Hacks 7 | . 5 2 Prototype ID Bank 2 | . 2 . Open Door 2 | . . 2 Locate Traps 1 | . 1 . Investigation Status 1 | . 1 . Hauler Manifests 1 | . 1 . Fabricator Hacks . | . . . Repair Station Hacks . | . . . Recycling Unit Hacks . | . . . Scanalyzer . | . . . Garrison Access Hacks . | . . . Unauthorized Hacks . | . . . Terminals . | . . . Fabricators . | . . . Repair Stations . | . . . Recycling Units . | . . . Scanalyzers . | . . . Garrison Access . | . . . Data Cores Recovered . | . . . Used . | . . . Hacking Detections 1 | . 1 . Full Trace Events . | . . . Feedback Events . | . . . Feedback Blocked . | . . . Robot Schematics Acquired . | . . . Robots Built . | . . . Authchips . | . . . Time . | . . . Total Robot Build Rating . | . . . Part Schematics Acquired . | . . . Parts Built . | . . . Authchips . | . . . Time . | . . . Total Part Build Rating . | . . . Parts Repaired . | . . . Time . | . . . Parts Recycled . | . . . Recycled Matter . | . . . Retrieved Matter . | . . . Retrieved Components . | . . . Parts Scanalyzed . | . . . Part Schematics Acquired . | . . . Parts Damaged . | . . . Bothacking | -11 -10 -10 ------------ Run | Jun Mat Min Used RIF Installer . | . . . Robots Hacked . | . . . Non-combat . | . . . Combat . | . . . Robot Hacks Applied . | . . . Relay Couplers Released . | . . . Fabnet Peak Effective % . | . . . Robots Rewired . | . . . Allies Hacked . | . . . Hacks Repelled . | . . . Allies | -11 -10 -10 -------- Run | Jun Mat Min Total Allies . | . . . Largest Group . | . . . Highest-Rated Group . | . . . Highest-Rated Ally . | . . . Total Orders . | . . . Ally Attacks . | . . . Total Damage . | . . . Kills . | . . . Allies Corrupted . | . . . Allies Melted . | . . . Intel | -11 -10 -10 ------- Run | Jun Mat Min Robot Analysis Total . | . . . Derelict Logs Recovered . | . . . Drone Launches . | . . . Drone Recoveries . | . . . Exploration | -11 -10 -10 ------------- Run | Jun Mat Min Turns Passed 775 | 115 299 361 Spaces Moved 446 | 70 110 266 Core 6 | 6 . . Treads 126 | 64 62 . Legs 314 | . 48 266 Wheels . | . . . Hover . | . . . Flight . | . . . Fastest Speed 50 | 50 160 110 Average Speed 146 | 150 185 129 Slowest Speed 260 | 160 260 200 Overloaded Moves . | . . . Propulsion Burnouts . | . . . Robots Hopped . | . . . Cave-ins Triggered . | . . . Exploration Rate (%) 25 | 4 29 44 Regions Visited 2 Branch Regions 1 Pre-discovered Areas . | . . . Known Exits Taken 1 | . 1 . Unknown Exits Taken 1 | 1 . . Scrap Searched . | . . . Spaces Dug . | . . . Terrain Destroyed 16 | . 16 . Melee . | . . . Projectile . | . . . AOE 16 | . 16 . Terrain Rammed . | . . . Walls Destroyed . | . . . Machines Disabled . | . . . Actions | -11 -10 -10 --------- Run | Jun Mat Min Total 512 | 77 155 280 Wait . | . . . Move 444 | 69 109 266 Hop . | . . . Pick Up 17 | 2 6 9 Fast Attach 9 | 5 3 1 Attach 5 | 1 3 1 Detach . | . . . Swap 4 | . 1 3 Drop 2 | . 2 . Fire 29 | . 29 . Melee . | . . . Ram . | . . . Kick 2 | . 2 . Crush . | . . . Escape Stasis . | . . . Rewire . | . . . Trap . | . . . Miscellaneous . | . . . Route ------- -11/Junkyard -10/Materials -10/Mines (discovered 1 exit: [*Mat]) History --------- Turn | Location | Event 8 | -11/Junkyard | Discovered new exit (range 15) 116 | -11/Junkyard | Entered Materials 266 | -10/Materials | Lost 3 parts (1p1n1w) 312 | -10/Materials | Discovered new exit (range 14) 318 | -10/Materials | Core integrity fell below 50% 325 | -10/Materials | Build established: Mutant 413 | -10/Materials | Identified exit to Mines 415 | -10/Materials | Entered Mines 506 | -10/Mines | Met a Derelict shopkeep closing up shop 582 | -10/Mines | Met a Derelict who couldn't figure out how to use a Trap Extractor 763 | -10/Mines | Assembled infested the area 768 | -10/Mines | Assisted by a Guerilla fighting off Assembled 771 | -10/Mines | Discovered new exit (range 6) 773 | -10/Mines | Core integrity fell below 20% 776 | -10/Mines | Destroyed by D-53 Grenadier with Mini Grenade Launcher Last Messages --------------- 00602_ VSS Leg severed. 00605_ Acquired VSS Leg. 00609_ Acquired Imp. Trap Extractor. 00615_ Acquired Hvy. Mace. 00659_ K-01 Serf collects debris. 00717_ Extracted 100 matter. 00719_ Extracted 150 matter. 00720_ Acquired Com. Matter Pod. 00729_ Extracted 150 matter. 00763_ ALERT: Infestation in the mines, dispatching Demolisher response squad. 00768_ A derelict emerges from the shadows: "You need to get out of here! I've been tracking a group of Assembled to figure out where they're coming from, and they're closing on this area, come on!" 00770_ C-30 ARC bursts open, deploying its payload. 00770_ D-53 Grenadier unfolds itself. 00770_ UW-GED(h) destroyed. 00771_ EXIT=FOUND 00773_ The unstable cave ceiling collapses. 00776_ Lgt. Assault Rifle destroyed. Map ----- +----------------------------------------------------+ | ??????????????????????????????# #####????? | | ??????????????????????????????#### ###### | | ?????????????????????????????????## | | ??????????????????????????????????## | | ?????????????????????????????########## ###### | | ????????????????????????????## #### ##???? | | ????????????????????????????# ### ###?? | | ??????????????????????#?????# #?? | | ?????????????????????? ?????# #? | | ??????????????????????# ????# %""" ####### #? | | ??????????????????????? ???# """ ##?????## ##? | | ??????????????????????? #??# """ ##???????####?? | | ???????????????????????%*??## """ ?????????????? | | ???????????????????????# ???## ????????????## | | ???????????????????????# ????# #???????????# | | ???????????????????????# ##### ###???????????# | | ???????????????????????# # #?????????????# | | ?????????????????????#### # ## #?????????????# | | ?????????????????# ### % # #?????????????# | | ?????????????????# add ] #?????????????# | | ??????????????????# ## ## #?????????????# | | ????????????????????# ## ############### | | ????????????????????## ## | | ????????????????????# ############## ###### | | ????????????????????# #??????####?# #?#" # | | ????????????????????## @ ##?????## ### ###" ^ | | ?????????????????????# #??##### #" ^ | | ?????????????????????# < #### ##" | | ?????????????????????# ## ###"= | | ?????????????????????# ## ! ! ##?#" # | | ????????????????????? ## ! #??#### | | ????????????????????## ## ! ! ## ##?????? | | ?????????????????????########## ! ! ######??????? | | ?????????????????????????????# #???????????? | | ?????????????????????????????# ###???????????? | | ?????????????????????????????# #?????????????? | | ?????????????????????????????## #?????????????? | | ??????????????????????????????## ##?????????????? | | ???????????????????????????????####??????????????? | | ?????????????????????????????????????????????????? | | ?????????????????????????????????????????????????? | | ?????????????????????????????????????????????????? | | | | | | | | | | | | | | | | | +----------------------------------------------------+ Best States ------------- Heat Dissipation 25 Energy Generation 14 Energy Capacity 140 Matter Stores 300 Matter Capacity 300 Sight Range 16 Terrain Scan Density 10 Evasion (%) 55 Recoil Reduction 2 Item Schematics ----------------- None Robot Schematics ------------------ None Fabricated ------------ Nothing Alien Tech Used ----------------- None Achievements -------------- None Challenges ------------ None Game ------ Seed DiametricActiveGun Manual? 0 Play Time 00:08:37 Cumulative 4.7 hours Start 2023.03.30 @ 11:15:46 End 2023.03.30 @ 11:23:50 Sessions 1 Manual Loads 0 Difficulty Rogue Special Mode None Game No. 12 Rogue 12 Adventurer 0 Explorer 0 Win Type - Total 0 Types 0/0/0/0/0/0/0/0/0 Lore% 12 Gallery% 9 Achievement% 11 Wizard Run 0 Options --------- ASCII 0 Keyboard 0 Movement Mouse Keybinds 0 Fullscreen 1 Font 24/Smallcaps Map View 76x56 Tactical HUD 1 Map Filters NONE Filters NONE Steam 1 RUN: ae492a56-aefa-46f3-bb21-5784e51543d8